[Event "1000GM Memorial Day NY IM-B 2023"]
[Site "New York"]
[Date "2023.05.26"]
[Round "1.1"]
[White "Barbosa, Oliver"]
[Black "Lee, Alice"]
[Result "1/2-1/2"]
[ECO "A11"]
[WhiteElo "2492"]
[BlackElo "2391"]
[Annotator "TA"]
[PlyCount "79"]
[EventDate "2023.05.23"]
[EventType "schev"]
[EventCountry "USA"]
[SourceTitle "playchess.com"]
[Source "ChessBase"]
[SourceQuality "1"]
[TimeControl "5400+30"]

{[%evp 10,79,0,19,8,-6,39,-20,-33,-36,-36,-37,24,5,27,37,44,37,35,16,27,15,10,14,23,0,13,8,51,44,47,51,45,0,0,0,0,0,0,-21,-27,-31,-8,-8,0,-14,5,5,10,12,45,-29992,-339,-320,7,-589,25,14,20,-29999,120,-389,50,0,46,-32,17,-857,112,-28,687,-36]} 1. Nf3 {[%emt 0:00:10]} d5 {[%emt 0:00:04]} 2. c4 {[%emt 0:00:10]} c6 {[%emt 0:00:11]} 3. g3 {[%emt 0:00:11]} Nf6 {[%emt 0:00:33]} 4. Bg2 {[%emt 0:00:10]} dxc4 {[%emt 0:00:08]} 5. O-O {[%emt 0:01:44]} Nbd7 {[%emt 0:00:06]} 6. Qc2 {[%emt 0:00:58]} Nb6 {[%emt 0:00:06] A11: English Opening: 1...c6.} 7. a4 {[%emt 0:00:24]} g6 {[%emt 0:02:51]} (7... a5 $5 {[%cal Rg7g6]}) 8. Re1 {[%emt 0:04:51]} (8. a5 $14 Bf5 9. Qc3) 8... a5 $1 $11 {[%emt 0:03:43] The position is equal.} 9. Na3 {[%emt 0:00:49][%cal Bb1a3,Ba3c4,Bc4e5][%mdl 32] [#]} Bg7 $146 {[%emt 0:13:06]} ({Predecessor:} 9... Be6 10. Ng5 Qd7 11. Nxe6 Qxe6 12. Rb1 Bg7 13. b3 c3 14. dxc3 O-O 15. Bf4 Nfd7 {½-½ Stocek,J (2537)-Haba,P (2545) CZE-chT 9899 1998 (11)}) 10. Nxc4 {[%emt 0:01:04]} Nbd5 {[%emt 0:05:18]} (10... Nfd5 $15 11. d3 O-O) 11. d3 {[%emt 0:02:37]} O-O {[%emt 0:02:33]} (11... Nb4 $5 {[%cal Rb4c2]} 12. Qb3 Be6 $11) 12. Bd2 {[%emt 0:00:39]} Ne8 {[%emt 0:09:53]} 13. d4 {[%emt 0:17:16]} Nd6 {[%emt 0:04:23]} 14. Nce5 {[%emt 0:07:04]} f6 {[%emt 0:22:13]} 15. Nd3 {[%emt 0:01:25]} Bf5 {[%emt 0:03:13]} 16. Nh4 {[%emt 0:04:48] e4 would be deadly.} Be4 {[%emt 0:01:30]} 17. f3 {[%emt 0:04:28]} Bxd3 {[%emt 0:01:59]} 18. Qxd3 {[%emt 0:00:15]} g5 {[%emt 0:02:05]} 19. Nf5 {[%emt 0:02:20]} Nxf5 $1 {[%emt 0:01:05]} 20. Qxf5 {[%emt 0:00:07]} Qb6 {[%emt 0:01:42][%csl LRb2,LRd4]} 21. e4 {[%emt 0:06:16]} Qxd4+ {[%emt 0:05:08]} 22. Kh1 {[%emt 0:00:43]} Qxd2 {[%emt 0:00:37]} 23. Rad1 {[%emt 0:03:35]} (23. exd5 {simplifies} Qxd5 24. Qxd5+ cxd5 25. Rxe7 Rf7 26. Re2) 23... Qc2 {[%emt 0:03:17][%cal Od5e3]} 24. Qe6+ {[%emt 0:01:06]} Kh8 $1 {[%emt 0:02:37][%cal Od5e3] And now ...Ne3! would win.} 25. exd5 {[%emt 0:00:13]} cxd5 {[%emt 0:00:47]} 26. Bf1 {[%emt 0:04:53]} f5 {[%emt 0:04:56]} 27. Rxd5 {[%emt 0:03:14]} Qc6 {[%emt 0:00:58] Black is weak on the light squares} 28. b3 {[%emt 0:06:13]} g4 {[%emt 0:05:41]} 29. fxg4 {[%emt 0:08:39]} Qxe6 {[%emt 0:01:21]} (29... fxg4 {simplifies} 30. Bb5 Qxe6 31. Rxe6 Rad8) 30. Re2 {[%emt 0:19:08][%mdl 8192] [#]} (30. Rxe6 $14 fxg4 31. Be2) 30... Qe5 $2 31. Rexe5 $19 {[%emt 0:00:00]} fxg4 {[%emt 0:00:32]} (31... Bxe5 $19 32. Rxe5 fxg4) 32. Re6 $2 {[%emt 0:00:00][%mdl 8192]} (32. Re1 $11) 32... Rac8 $2 {[%emt 0:02:07]} ({Better is} 32... Rxf1+ $19 33. Kg2 Raf8) 33. Be2 {[%emt 0:00:00]} Rc2 34. Bxg4 $2 {[%emt 0:00:00][%mdl 8192]} (34. Rxe7 $11 Rf2 35. Rd8+ (35. Bxg4 $2 Rf1#) 35... Rf8 36. Rdd7) 34... Rcf2 $2 {[%emt 0:01:36] [#]} (34... Rf1# {mates}) 35. Bf5 $2 {[%emt 0:00:00][%mdl 8192]} Bf6 $2 {[%emt 0:00:34]} (35... R8xf5 $2 36. Rxf5 Rxf5 37. Rxe7 $19) (35... R2xf5 $19 36. Rxf5 Rxf5 37. Rxe7 b6) 36. g4 {[%emt 0:00:00]} (36. Rxa5 $2 {loses.} Rd8 37. Bg4 Rdd2 $19) ({White should play} 36. Bd3 $14) 36... Rg8 {[%emt 0:00:34]} (36... Rc8 $11 37. Re1 (37. Rxa5 $2 {gets mated.} Rc1+) 37... Rc3) 37. Bd3 {[%emt 0:00:00]} (37. Rxa5 $2 {perishes.} Rd8 38. Kg1 Rb2 $19) (37. Rb6 $14) 37... Rg5 {[%emt 0:00:29]} (37... Rxg4 $15 38. Re4 Rxe4 39. Bxe4 b6) 38. h3 $2 {[%emt 0:00:00][%mdl 8192]} Kg7 $2 {[%emt 0:00:01]} (38... Rxd5 $19 39. Re2 Rxe2 40. Bxe2 Rd2) 39. Rd8 {[%emt 0:00:00] [#] White is more active.} (39. Bf5 $16) 39... Rf1+ $2 {[%emt 0:00:13][%mdl 8192]} 40. Kh2 $2 {[%emt 0:00:00] An interesting game.   Weighted Error Value: White=0.93/Black=0.99} ({Only move:} 40. Bxf1 $18 h5 41. gxh5) 1/2-1/2

[Event "1000GM Memorial Day NY IM-B 2023"]
[Site "New York"]
[Date "2023.05.26"]
[Round "1.2"]
[White "Ansh M Shah"]
[Black "Nagy, Gabor"]
[Result "0-1"]
[ECO "E01"]
[WhiteElo "2171"]
[BlackElo "2468"]
[Annotator "TA"]
[PlyCount "95"]
[EventDate "2023.05.23"]
[EventType "schev"]
[EventCountry "USA"]
[SourceTitle "playchess.com"]
[Source "ChessBase"]
[SourceQuality "1"]
[TimeControl "5400+30"]

{[%evp 9,95,35,43,33,36,34,37,-11,-6,-13,26,26,48,52,45,44,41,30,72,78,128,134,186,129,152,132,160,157,156,154,153,134,137,112,100,99,99,104,104,91,77,59,77,66,89,104,108,6,2,8,4,-8,-3,-5,0,0,28,29,43,47,49,-2,-3,-3,0,-8,0,0,0,0,-2,-15,-5,-53,-57,-57,-38,-159,-159,-118,-22,-22,0,-318,-323,-323,-116,-602]} 1. d4 {[%emt 0:00:02]} Nf6 {[%emt 0:00:24]} 2. c4 {[%emt 0:00:07]} e6 {[%emt 0:00:14]} 3. g3 {[%emt 0:00:12]} d5 {[%emt 0:01:00]} 4. Bg2 {[%emt 0:00:07]} h6 {[%emt 0:00:26]} 5. Nf3 {[%emt 0:00:10]} Bd6 {[%emt 0:00:27]} 6. O-O {[%emt 0:00:19] E01: Catalan: Early deviations.} O-O {[%emt 0:00:32]} 7. Nc3 {[%emt 0:00:28]} Nc6 {[%emt 0:00:35]} 8. Nb5 {[%emt 0:08:59]} (8. b3 $14 {should be considered.}) 8... dxc4 $11 {[%emt 0:01:59] [#]} 9. Qa4 $146 {[%emt 0:04:28]} ({Predecessor:} 9. Qc2 e5 10. dxe5 Bxe5 11. Qxc4 Be6 12. Qa4 a6 13. Nxe5 axb5 14. Nxc6 Rxa4 15. Nxd8 Rxd8 16. Bxb7 Rxa2 17. Rxa2 Bxa2 {0-1 Injac,T (2384)-Ivanisevic,I (2557) SRB-ch Blitz 2022 (2)}) 9... e5 {[%emt 0:08:34]} (9... a6 $5 {[%cal Ra6b5]}) 10. dxe5 {[%emt 0:13:56]} Bxe5 {[%emt 0:00:51]} 11. Nxe5 {[%emt 0:02:57]} Nxe5 {[%emt 0:00:10]} 12. Bf4 {[%emt 0:00:21]} Qe7 {[%emt 0:00:56]} 13. Qa5 {[%emt 0:05:27]} Ng6 {[%emt 0:03:29]} 14. Bxc7 {[%emt 0:12:39] [#] Black must now prevent Bd6.} Ne8 {[%emt 0:00:41] Against Bd6} (14... Bd7 $142) 15. Bb6 $36 {[%emt 0:09:09][%mdl 2048] Black is under strong pressure.} Qg5 {[%emt 0:12:46]} (15... Nf6 $16 {was necessary.}) 16. Be3 {[%emt 0:05:12] A strong pair of Bishops.} (16. Nxa7 Qxa5 17. Bxa5 Rxa7 $15) ({Better is} 16. Na3 $18) 16... Qh5 {[%emt 0:01:04]} 17. Qb4 {[%emt 0:01:52]} (17. Bxa7 Rxa7 18. Qxa7 Qxb5 $15) 17... Bd7 {[%emt 0:07:30]} 18. Nc3 {[%emt 0:08:46]} (18. Bxb7 Rb8 19. Nc3 (19. Nxa7 $2 Nf6 $19) 19... Bc6 $15) 18... Nf6 {[%emt 0:00:33]} 19. Bd4 {[%emt 0:08:24]} (19. Qxb7 Ng4 20. h3 (20. Qxd7 $2 Qxh2#) 20... Nxe3 21. fxe3 (21. Qxd7 Rad8 $11) 21... Be6 $11) (19. Bxb7 Rfb8 20. f3 Qe5 $19) 19... Ng4 {[%emt 0:03:30][%csl Gg4][%cal Rh5h2]} 20. h3 {[%emt 0:00:42]} (20. Qxb7 $2 Qxh2#) 20... N4e5 {[%emt 0:00:09]} 21. Bxe5 {[%emt 0:06:31]} (21. Bxb7 $2 Rab8 22. f4 (22. Bxa7 $2 Rxb7 23. Qxb7 Bc6 $19) 22... Qxh3 $19) (21. Qxb7 $6 Bxh3 22. Bxh3 (22. Bxa7 Bxg2 23. Kxg2 Nh4+ 24. gxh4 Qg4+ 25. Kh2 Qxh4+ 26. Kg2 Qg5+ 27. Kh1 Qh5+ 28. Kg1 Ng4 $11) 22... Qxh3 $14) 21... Nxe5 {[%emt 0:00:31]} 22. f4 {[%emt 0:01:56]} (22. Bxb7 $2 Rab8 23. Nd5 Qxh3 $19) (22. Qxb7 $6 Bxh3 23. Bxh3 Qxh3 $11) 22... Nc6 {[%emt 0:04:24]} 23. Qxb7 {[%emt 0:00:36]} (23. Qxc4 $6 Bxh3 24. Rfd1 Rad8 $11) 23... Rfd8 {[%emt 0:00:24]} 24. Rad1 {[%emt 0:02:00]} (24. Bxc6 Qc5+ 25. Kh2 Bxc6 $17) (24. Qb5 {simplifies} Qxb5 25. Nxb5 Rab8 26. Rfd1) 24... Rab8 {[%emt 0:00:46]} 25. Qa6 {[%emt 0:02:53]} Qc5+ {[%emt 0:01:37]} 26. Kh2 {[%emt 0:01:07][%cal Od1d7]} Be8 {[%emt 0:01:49]} 27. Ne4 {[%emt 0:02:56]} Qb4 {[%emt 0:01:00]} 28. a3 {[%emt 0:00:53]} (28. Rxd8 $16 Rxd8 29. Rb1) 28... Qxb2 $11 {[%emt 0:00:30] ...Rxd1 would be deadly.} 29. Qxc4 {[%emt 0:00:23]} Qxa3 {[%emt 0:00:36]} 30. Qc5 {[%emt 0:01:25]} Qxc5 {[%emt 0:02:16]} 31. Nxc5 {[%emt 0:00:02]} Rdc8 {[%emt 0:00:10]} 32. Ne4 {[%emt 0:00:27]} Ne7 {[%emt 0:01:13]} 33. Nd6 {[%emt 0:00:51]} Rc2 {[%emt 0:00:24]} 34. Nxe8 {[%emt 0:00:40]} Rxe8 {[%emt 0:00:06]} 35. Rf2 {[%emt 0:00:27]} ({White should play} 35. Bf3 $14) 35... Nf5 {[%emt 0:00:27]} 36. Bf3 {[%emt 0:00:24]} g6 {[%emt 0:00:49]} 37. g4 {[%emt 0:00:31]} Ne3 {[%emt 0:46:08]} 38. Rd7 {[%emt 0:00:37]} a5 {[%emt 0:00:00][%cal Ba7a5,Ba5a4,Ba4a3][%mdl 32]} 39. f5 {[%emt 0:00:31]} g5 {[%emt 0:00:00]} 40. Kg3 {[%emt 0:00:31]} Rc4 {[%emt 0:00:00]} 41. Bd5 {[%emt 0:00:30]} (41. Ra7 $11) 41... Nxd5 $15 {[%emt 0:00:00]} 42. Rxd5 {[%emt 0:00:02][%mdl 4096] Endgame KRR-KRR} a4 {[%emt 0:00:00]} 43. Ra5 {[%emt 0:00:23]} (43. Rd3 $15) 43... Re3+ $17 {[%emt 0:00:00]} 44. Kg2 {[%emt 0:00:19] [#]} f6 {[%emt 0:00:00] Black is more active.} (44... a3 $1 $17 {Strongly threatening ...Rc2.} 45. Rf3 Rxe2+ 46. Kg3 (46. Kf1 $2 Rb2 $19) 46... a2) 45. Ra7 {[%emt 0:00:47]} a3 {[%emt 0:00:00]} 46. Kf1 $2 {[%emt 0:01:00][%mdl 8192]} (46. Ra8+ Kf7 47. Rf1 h5) (46. Rf1 $11) 46... Rc1+ $19 {[%emt 0:00:00]} ({Inferior is} 46... Rxh3 47. Rf3 (47. Ra8+ Kf7 $17) 47... Rc1+ 48. Kg2 Rxf3 49. Ra8+ Kf7 50. Kxf3 $17) 47. Kg2 {[%emt 0:00:01]} Rc2 $2 {[%emt 0:00:00]} (47... Re1 $19 {and Black stays clearly on top. And now ...Kf8 would win.} 48. Ra6 Kg7 49. Ra7+ Kf8) 48. Rf3 $2 {[%emt 0:01:30][%mdl 8192] Quite a comeback for Black.   Weighted Error Value: White=0.27 (precise) /Black=0.18 (very precise)} (48. Kg1 $17) 0-1

[Event "1000GM Memorial Day NY IM-B 2023"]
[Site "New York"]
[Date "2023.05.26"]
[Round "1.3"]
[White "Bortnyk, Mykola"]
[Black "Pang, Qi"]
[Result "1/2-1/2"]
[ECO "D93"]
[WhiteElo "2425"]
[BlackElo "2165"]
[Annotator "TA"]
[PlyCount "104"]
[EventDate "2023.05.23"]
[EventType "schev"]
[EventCountry "USA"]
[SourceTitle "playchess.com"]
[Source "ChessBase"]
[SourceQuality "1"]
[TimeControl "5400+30"]

{[%evp 13,104,13,21,7,26,27,39,8,19,21,15,0,10,0,0,0,0,-32,-33,-45,-29,-40,0,0,0,0,0,0,0,0,60,0,42,0,0,0,0,0,24,0,0,-55,-46,-62,-56,-64,-39,-55,0,-138,0,0,0,0,0,0,0,0,0,0,0,0,0,0,0,0,0,0,0,0,0,0,0,0,0,0,0,0,0,0,0,-8,-8,-8,-8,-8,0,0,0,-8,0,0,0]} 1. d4 {[%emt 0:12:10]} d5 {[%emt 0:00:08]} 2. c4 {[%emt 0:00:12]} c6 {[%emt 0:00:03]} 3. Nf3 {[%emt 0:00:26]} Nf6 {[%emt 0:00:05]} 4. Qc2 {[%emt 0:00:33]} g6 {[%emt 0:00:16]} 5. Bf4 {[%emt 0:00:41]} Bg7 {[%emt 0:00:16]} 6. e3 {[%emt 0:01:05]} O-O {[%emt 0:00:25]} 7. Nc3 {[%emt 0:00:38]} a6 $1 {[%emt 0:01:20][%mdl 4] 7...a6 is the recent fashion.} 8. Bd3 {[%emt 0:02:20] has lost popularity (8.h3). D93: Grünfeld: 4 Nf3 Bg7 5 Bf4 0-0 6 e3.} dxc4 {[%emt 0:08:36]} 9. Bxc4 {[%emt 0:00:03]} b5 {[%emt 0:00:18] Black is weak on the dark squares} 10. Bb3 {[%emt 0:00:48] White is slightly better.} Nbd7 {[%emt 0:00:34]} 11. O-O {[%emt 0:03:33]} Bb7 {[%emt 0:08:27] [#]} 12. a4 $146 {[%emt 0:00:20]} ({Predecessor:} 12. Rad1 Qb6 13. Qe2 Rfd8 14. e4 e6 15. Bg5 h6 16. Bh4 g5 17. Bg3 c5 18. d5 exd5 19. Nxd5 Nxd5 20. Bxd5 Bxd5 21. exd5 {0-1 Deen Cowell,N (1904)-Willathgamuwa,K (1689) Australian op 2013 (10)}) 12... Qb6 {[%emt 0:04:50]} 13. Ne5 {[%emt 0:13:25]} c5 {[%emt 0:15:47]} 14. axb5 {[%emt 0:09:03]} axb5 {[%emt 0:00:54] White must now prevent ...c4.} (14... cxd4 {is more complex.} 15. Nd5 Nxd5 16. Nxd7 Qxb5 17. Ba4 Rfc8) 15. Rxa8 {[%emt 0:01:20]} Bxa8 {[%emt 0:00:06]} 16. Bxf7+ {[%emt 0:00:13][%mdl 64] [#] Decoy} Rxf7 {[%emt 0:01:08]} 17. Nxf7 {[%emt 0:00:35]} Kxf7 {[%emt 0:00:04]} (17... Qb7 $5 18. f3 Kxf7 $15) 18. Qb3+ {[%emt 0:00:06]} Kf8 {[%emt 0:05:35]} 19. dxc5 {[%emt 0:04:18]} Nxc5 {[%emt 0:02:27]} (19... Qc6 $5 20. f3 $8 Nh5 $11) 20. Qxb5 {[%emt 0:00:05]} Qxb5 {[%emt 0:00:55]} (20... Qc6 {looks sharper.} 21. Qxc6 Bxc6 22. b4 Nfd7) 21. Nxb5 {[%emt 0:00:05] Threatens to win with Rc1.} Bb7 {[%emt 0:19:17]} (21... Ne8 $11) 22. Nc7 {[%emt 0:09:56]} (22. Nd6 $14) 22... Kf7 {[%emt 0:10:09]} 23. Rd1 {[%emt 0:02:14]} Nfe4 {[%emt 0:00:58][%cal Og6g5]} 24. b4 {[%emt 0:02:25]} Nc3 {[%emt 0:01:09]} 25. Rd8 {[%emt 0:00:05]} Na6 {[%emt 0:04:52]} 26. Ne8 {[%emt 0:05:36][%cal Ob4b5] And now b5! would win.} Ne2+ {[%emt 0:02:57]} 27. Kh1 {[%emt 0:00:24]} (27. Kf1 $11 Nxf4 28. exf4) 27... Bc3 $1 $15 {[%emt 0:02:50][%cal Oe2f4] aiming for ...Nxf4! This pair of bishops is nice.} ({Much worse is} 27... Nxb4 28. Nxg7 Nxf4 29. exf4 $11) 28. Nd6+ {[%emt 0:00:16]} exd6 {[%emt 0:00:43]} 29. Rd7+ {[%emt 0:00:02]} Ke6 $1 {[%emt 0:00:30]} 30. Rxb7 {[%emt 0:09:01]} Nxb4 {[%emt 0:01:13]} (30... Nxf4 $15 31. exf4 Nxb4) 31. Rxh7 {[%emt 0:00:38] [#]} (31. g3 $11 {remains equal.}) 31... Nd3 {[%emt 0:02:54]} (31... Nxf4 $1 $17 32. exf4 d5) 32. g3 $11 {[%emt 0:00:10] The position is equal.} Nexf4 {[%emt 0:01:06]} 33. gxf4 {[%emt 0:00:30]} Nxf2+ {[%emt 0:00:09]} 34. Kg2 {[%emt 0:00:03]} Ne4 {[%emt 0:00:23]} 35. Kf3 {[%emt 0:00:10]} d5 {[%emt 0:00:54]} 36. h4 {[%emt 0:00:02]} Bf6 {[%emt 0:00:33]} 37. Kg4 {[%emt 0:01:23]} Nf2+ {[%emt 0:00:31]} 38. Kg3 {[%emt 0:00:08]} Ne4+ {[%emt 0:00:05]} 39. Kf3 {[%emt 0:00:04]} Nd2+ {[%emt 0:00:52]} 40. Kg4 {[%emt 0:00:24]} Nc4 {[%emt 0:00:05]} 41. Kf3 {[%emt 0:01:11]} Nd2+ {[%emt 0:00:08]} 42. Kg2 {[%emt 0:00:28]} Nc4 {[%emt 0:02:10]} 43. Kf2 {[%emt 0:00:14]} Nd6 {[%emt 0:00:53]} 44. h5 {[%emt 0:01:57]} gxh5 {[%emt 0:00:05]} 45. Rxh5 {[%emt 0:00:04]} Ne4+ {[%emt 0:00:08]} 46. Kf3 {[%emt 0:00:06]} Bc3 {[%emt 0:00:39]} 47. f5+ {[%emt 0:00:35]} Kf6 {[%emt 0:00:48]} (47... Ke5 {feels hotter.} 48. f6+ Ke6 49. f7 Bb4) 48. Kf4 {[%emt 0:00:40]} Be5+ {[%emt 0:00:13]} 49. Kg4 {[%emt 0:00:03]} Nf2+ {[%emt 0:00:40]} (49... Kg7 $5 {[%cal Re4f6]} 50. Kf3 Nd2+ 51. Ke2 Ne4 $11) 50. Kf3 {[%emt 0:00:03]} Ne4 {[%emt 0:00:08]} 51. Kg4 {[%emt 0:00:03]} Nf2+ {[%emt 0:01:19]} 52. Kf3 {[%emt 0:00:07]} Ne4 {[%emt 0:04:55] Weighted Error Value: White=0.15 (very precise) /Black=0.11 (very precise)} 1/2-1/2

[Event "1000GM Memorial Day NY IM-B 2023"]
[Site "New York"]
[Date "2023.05.26"]
[Round "1.4"]
[White "Hebbar, Eshaan"]
[Black "Chen, Justin"]
[Result "0-1"]
[ECO "E21"]
[WhiteElo "1969"]
[BlackElo "2333"]
[Annotator "TA"]
[PlyCount "102"]
[EventDate "2023.05.23"]
[EventType "schev"]
[EventCountry "USA"]
[SourceTitle "playchess.com"]
[Source "ChessBase"]
[SourceQuality "1"]
[TimeControl "5400+30"]

{[%evp 16,102,0,-20,0,-13,-1,-5,-1,-9,13,6,21,14,10,8,14,0,15,0,17,0,0,-5,15,0,20,16,6,6,39,-121,-120,-141,-83,-72,-77,-82,-66,-110,-98,-212,-96,-163,-157,-161,-156,-250,-247,-257,-256,-434,-428,-412,-407,-465,-454,-465,-465,-458,-427,-438,-429,-430,-431,-586,-585,-569,-554,-867,-862,-844,-821,-995,-962,-859,-803,-736,-696,-989,-979,-973,-966,-920,-822,-894,-782,-828,-769]} 1. d4 {[%emt 0:00:03]} Nf6 {[%emt 0:00:07]} 2. c4 {[%emt 0:00:08]} b6 {[%emt 0:00:27]} 3. Nc3 {[%emt 0:01:14]} Bb7 {[%emt 0:00:18]} 4. Nf3 {[%emt 0:05:26]} e6 {[%emt 0:00:18]} 5. g3 {[%emt 0:00:43]} Bb4 {[%emt 0:02:22]} 6. Bg2 {[%emt 0:00:38]} O-O {[%emt 0:00:23]} 7. O-O {[%emt 0:00:06]} Bxc3 {[%emt 0:01:33]} 8. bxc3 {[%emt 0:00:05]} d6 {[%emt 0:02:03]} 9. a4 {[%emt 0:07:16]} Nc6 {[%emt 0:04:31] E21: Nimzo-Indian: 4 Nf3.} 10. Nd2 {[%emt 0:09:18] Against Ne4} Na5 {[%emt 0:03:35]} 11. Bxb7 {[%emt 0:01:06]} Nxb7 {[%emt 0:00:01] The position is equal.} 12. Nb3 {[%emt 0:01:31]} a5 {[%emt 0:07:16] [#]} 13. Qd3 $146 {[%emt 0:02:55]} ({Predecessor:} 13. Ba3 Re8 14. c5 bxc5 15. dxc5 Qd7 16. cxd6 cxd6 17. Nd4 Rac8 18. Qb3 e5 19. Nb5 {1-0 Rasulov,V (2516)-Grischuk,A (2745) Titled Tuesday intern op 28th Feb Late blitz 2023 (7)}) 13... Re8 {[%emt 0:12:08]} 14. e4 {[%emt 0:00:57]} e5 {[%emt 0:04:25]} 15. f3 {[%emt 0:00:37]} h6 {[%emt 0:04:14]} 16. Be3 {[%emt 0:01:30]} Qd7 {[%emt 0:02:30]} 17. Rfd1 {[%emt 0:01:39]} Rad8 {[%emt 0:04:19]} 18. Qe2 {[%emt 0:08:24]} Qe6 {[%emt 0:02:31]} 19. Bf2 {[%emt 0:05:49]} Nh7 {[%emt 0:04:05]} 20. Nd2 {[%emt 0:06:55]} Rd7 {[%emt 0:03:51]} 21. Rab1 {[%emt 0:03:42]} Ng5 {[%emt 0:10:15]} 22. Be3 {[%emt 0:00:23]} Qf6 {[%emt 0:02:04]} 23. dxe5 $2 {[%emt 0:07:32]} (23. Rf1 $14 {stays ahead.}) 23... dxe5 $17 {[%emt 0:02:35]} 24. h4 {[%emt 0:00:57] [#]} Ne6 {[%emt 0:00:38] Black has more active pieces.} (24... Rxd2 $142 $1 25. Bxd2 Nxf3+ 26. Kg2 Nxd2 27. Qxd2 Nc5) 25. Nb3 {[%emt 0:00:19]} Rxd1+ {[%emt 0:00:50]} 26. Rxd1 {[%emt 0:00:17]} Qe7 {[%emt 0:00:04] ...Qa3 is the strong threat.} 27. Qc2 {[%emt 0:07:05]} Rd8 {[%emt 0:06:54]} 28. Nc1 {[%emt 0:13:48] [#]} (28. Rxd8+ $17 {might work better.} Qxd8 29. c5) 28... Nec5 {[%emt 0:04:38]} (28... Rxd1+ $1 $19 {is more deadly.} 29. Qxd1 Qa3) 29. Rd5 {[%emt 0:04:52]} (29. Nd3 $17) 29... Rxd5 $19 {[%emt 0:00:44]} 30. cxd5 {[%emt 0:00:09]} Qd7 {[%emt 0:00:03]} 31. f4 {[%emt 0:01:07]} (31. c4 $17) 31... Qxa4 {[%emt 0:02:01]} 32. Qxa4 {[%emt 0:00:53]} Nxa4 {[%emt 0:00:01][%mdl 4096] Endgame KBN-KNN} 33. Bd2 $2 {[%emt 0:00:42]} (33. Na2 {is a better defense.}) 33... Nd6 {[%emt 0:01:27]} 34. fxe5 {[%emt 0:00:33]} Nxe4 {[%emt 0:00:06]} 35. Be3 {[%emt 0:01:23]} Naxc3 {[%emt 0:00:58] Excellent horsemanship. Black is clearly winning.} (35... Nxg3 $2 36. c4 $19) 36. d6 {[%emt 0:00:19]} cxd6 {[%emt 0:00:07]} 37. Bxb6 {[%emt 0:01:09]} a4 {[%emt 0:00:02]} (37... dxe5 $2 {is the wrong capture.} 38. Bxa5 f6 39. Kg2 $19) ({Weaker is} 37... Nxg3 38. exd6 Nge2+ 39. Kh2 $16 (39. Nxe2 Nxe2+ 40. Kh2 Nf4 $11)) 38. exd6 {[%emt 0:00:02]} Nxd6 {[%emt 0:00:08]} (38... Nxg3 $2 39. d7 $18) 39. Bc5 {[%emt 0:00:37]} Nf5 {[%emt 0:00:59]} 40. Nd3 {[%emt 0:01:57]} Nxg3 {[%emt 0:00:11]} 41. Nb2 {[%emt 0:00:46]} Nf5 {[%emt 0:00:38]} 42. Bb4 {[%emt 0:00:13]} Nd5 {[%emt 0:00:19]} 43. Ba3 {[%emt 0:00:17]} Nxh4 {[%emt 0:00:55]} 44. Nxa4 {[%emt 0:00:09]} Kh7 {[%emt 0:00:27]} 45. Kf2 {[%emt 0:00:12]} g5 {[%emt 0:00:10]} 46. Nc5 {[%emt 0:00:32]} h5 {[%emt 0:00:23][%cal Bh6h5,Bh5h4][%mdl 32] White must now prevent ...g4.} 47. Ne4 {[%emt 0:00:52]} Kg6 {[%emt 0:00:12]} 48. Bd6 {[%emt 0:00:12]} Nf5 {[%emt 0:00:07] aiming for ...Nxd6.} 49. Bb8 {[%emt 0:00:10]} h4 {[%emt 0:00:23]} 50. Kf3 {[%emt 0:00:12]} Nd4+ {[%emt 0:00:07]} 51. Kf2 {[%emt 0:00:22]} g4 {[%emt 0:00:22] Weighted Error Value: White=0.48/Black=0.13 (very precise)} 0-1